bitfinex/quotes_SOLUSD_20250928
["timestamp","ask_amount","ask_price","bid_price","bid_amount"]
[1759078071151,2.37766862,204.46,204.42,0.68]
[1759078072071,1.71766862,204.44,204.39,0.68]
[1759078072275,2.37766862,204.43,204.37,2.39766862]
[1759078072646,40.13766862,204.43,204.37,2.39766862]
[1759078072971,40.13766862,204.43,204.38,0.68]
[1759078073350,0.66,204.42,204.38,0.68]
[1759078075570,0.66,204.41,204.36,2.39766862]
[1759078076066,1.71766862,204.42,204.37,0.68]
[1759078076277,2.37766862,204.42,204.38,0.68]
[1759078076570,39.47766862,204.42,204.36,1.71766862]
[1759078076770,0.66,204.41,204.36,2.39766862]
[1759078076980,0.66,204.41,204.37,0.68]
[1759078077657,39.47766862,204.42,204.37,0.68]
[1759078077857,0.66,204.4,204.37,0.68]
[1759078078672,0.66,204.4,204.36,1.71766862]
[1759078078673,2.37766862,204.42,204.36,1.71766862]
[1759078078970,1.71766862,204.39,204.33,0.68]
[1759078079145,1.71766862,204.38,204.33,0.68]
[1759078079351,2.37766862,204.38,204.34,0.68]
[1759078079770,1.71766862,204.37,204.34,0.68]
[1759078079965,2.37766862,204.38,204.34,0.68]
[1759078080171,40.17766862,204.38,204.34,0.68]
[1759078080348,0.66,204.37,204.32,0.68]
[1759078080549,39.51766862,204.38,204.32,0.68]
[1759078080744,37.8,204.38,204.32,2.39766862]
[1759078080952,37.8,204.38,204.33,0.68]
[1759078081154,38.46,204.38,204.34,0.68]
[1759078081764,0.66,204.37,204.32,0.68]
[1759078082077,0.66,204.36,204.32,0.68]
[1759078082655,1.71766862,204.37,204.33,0.68]
[1759078083074,2.37766862,204.37,204.33,0.68]
[1759078084769,0.66,204.37,204.33,0.68]
[1759078084961,37.8,204.38,204.34,0.68]
[1759078085164,37.8,204.38,204.35,0.68]
[1759078085770,0.66,204.38,204.35,0.68]
[1759078085979,26.0,204.39,204.35,0.68]
[1759078086183,64.44,204.39,204.35,0.68]
[1759078086370,0.66,204.43,204.38,2.68768277]
[1759078086689,37.78,204.42,204.39,3.36768277]
[1759078086877,38.44,204.42,204.39,2.68768277]
[1759078087076,37.78,204.42,204.38,2.68768277]
[1759078087281,37.78,204.42,204.39,0.68]
[1759078087481,38.44,204.42,204.38,2.68768277]
[1759078087659,38.44,204.42,204.38,3.36768277]
[1759078088076,0.66,204.41,204.36,2.68768277]
[1759078088262,0.66,204.4,204.35,2.68768277]
[1759078088466,0.66,204.39,204.33,2.68768277]
[1759078088663,0.66,204.38,204.33,2.68768277]
[1759078088978,0.66,204.37,204.33,3.36768277]
[1759078089685,0.66,204.36,204.31,3.36768277]
[1759078089876,0.66,204.36,204.32,0.68]
[1759078090082,40.50768277,204.38,204.32,2.68768277]
[1759078090381,40.50768277,204.38,204.3,0.1]
[1759078090382,37.82,204.38,204.33,3.36768277]
[1759078090586,37.82,204.38,204.34,3.36768277]
[1759078090764,37.82,204.39,204.36,2.68768277]
[1759078090965,37.82,204.39,204.37,0.68]
[1759078092491,37.82,204.39,204.3,38.33690651]
[1759078092492,37.82,204.39,204.35,3.36768277]
[1759078094099,2.68768277,204.42,204.36,3.36768277]
[1759078094266,2.68768277,204.42,204.3,51.93250052]
[1759078094267,3.37768277,204.43,204.37,3.36768277]
[1759078094592,3.37768277,204.43,204.35,4.89355018]
[1759078094593,0.69,204.43,204.38,3.36768277]
[1759078094766,0.69,204.43,204.39,0.68]
[1759078098776,3.37768277,204.43,204.39,0.68]
[1759078099497,0.69,204.43,204.39,0.68]
[1759078099790,3.37768277,204.43,204.39,0.68]
[1759078100385,2.68768277,204.42,204.36,3.36768277]
[1759078100571,2.68768277,204.4,204.34,26.69]
[1759078100772,3.35768277,204.4,204.34,26.69]
[1759078101179,3.35768277,204.4,204.34,0.69]
[1759078101389,3.35768277,204.4,204.34,26.69]
[1759078101589,3.35768277,204.4,204.34,29.37768277]
[1759078102282,3.35768277,204.4,204.35,0.69]
[1759078102668,41.15768277,204.42,204.35,3.37768277]
[1759078102873,38.47,204.42,204.36,3.37768277]
[1759078103094,0.67,204.42,204.37,3.37768277]
[1759078103391,37.8,204.43,204.38,0.69]
[1759078103571,37.8,204.43,204.39,0.69]
[1759078103789,38.47,204.43,204.39,0.69]
[1759078103973,0.67,204.42,204.39,0.69]
[1759078104272,0.67,204.42,204.37,3.37768277]
[1759078104470,0.67,204.42,204.38,0.69]
[1759078105294,3.35768277,204.42,204.38,0.69]
[1759078105588,0.67,204.42,204.38,3.37768277]
[1759078106775,0.67,204.42,204.39,2.68768277]
[1759078107590,0.67,204.42,204.38,3.37768277]
[1759078109090,0.67,204.42,204.39,0.69]
[1759078109892,100.67,204.42,204.39,0.69]
[1759078111392,100.67,204.42,204.39,3.37768277]
[1759078111695,100.67,204.42,204.39,2.68768277]
[1759078117097,100.67,204.42,204.38,3.37768277]
[1759078118881,38.39,204.41,204.36,2.68768277]
[1759078119083,41.07768277,204.41,204.35,2.68768277]
[1759078119283,0.67,204.4,204.35,2.68768277]
[1759078119580,0.67,204.39,204.35,3.37768277]
[1759078120076,0.67,204.39,204.36,0.69]
[1759078120294,0.67,204.39,204.36,3.37768277]
[1759078121690,0.67,204.39,204.36,2.68768277]
[1759078122106,0.67,204.39,204.35,0.69]
[1759078122286,0.67,204.39,204.36,2.68768277]
[1759078122787,0.67,204.38,204.34,2.68768277]
[1759078122986,0.67,204.37,204.34,2.68768277]
[1759078123188,37.7,204.38,204.3,0.1]
[1759078123395,0.67,204.36,204.3,0.79]
[1759078123587,0.67,204.36,204.32,2.68768277]
[1759078123785,0.67,204.35,204.31,0.69]
[1759078125306,0.67,204.37,204.32,3.37768277]
[1759078125505,0.67,204.37,204.33,0.69]
[1759078126509,0.67,204.36,204.32,2.68768277]
[1759078126808,0.67,204.35,204.32,2.68768277]
[1759078126987,0.67,204.35,204.32,3.37768277]
[1759078127196,0.67,204.37,204.32,3.37768277]
[1759078127399,0.67,204.36,204.32,3.37768277]
[1759078128408,40.38768277,204.38,204.32,3.37768277]
[1759078128608,0.67,204.35,204.32,0.69]
[1759078128910,0.67,204.35,204.31,2.68768277]
[1759078129097,0.67,204.35,204.31,3.37768277]
[1759078129606,0.67,204.35,204.32,0.69]
[1759078130206,3.35768277,204.37,204.32,0.69]
[1759078130397,0.67,204.36,204.32,0.69]
[1759078131490,2.68768277,204.37,204.31,2.68768277]
[1759078131690,0.7,204.35,204.31,2.68768277]
[1759078132208,0.7,204.35,204.31,3.40768277]
[1759078132412,2.68768277,204.37,204.32,0.72]
[1759078132607,0.7,204.36,204.32,0.72]
[1759078132814,41.08768277,204.38,204.33,0.72]
[1759078133316,41.08768277,204.38,204.34,0.72]
[1759078133697,0.7,204.37,204.34,0.72]
[1759078134097,0.7,204.36,204.32,3.40768277]
[1759078134603,40.38768277,204.38,204.32,3.40768277]
[1759078134604,0.7,204.37,204.33,0.72]
[1759078134797,40.38768277,204.38,204.33,0.72]
[1759078135019,0.7,204.36,204.33,0.72]
[1759078136197,38.4,204.38,204.33,0.72]
[1759078136398,0.7,204.37,204.33,0.72]
[1759078136793,38.4,204.37,204.33,0.72]
[1759078137512,37.7,204.37,204.33,0.72]
[1759078137719,0.7,204.36,204.33,0.72]
[1759078138515,0.7,204.36,204.32,2.68768277]
[1759078138817,0.7,204.36,204.31,0.72]
[1759078138818,37.7,204.37,204.3,0.1]
[1759078139018,0.7,204.36,204.32,0.72]
[1759078139519,0.7,204.35,204.32,0.72]
[1759078140407,0.7,204.35,204.31,2.68768277]
[1759078140602,0.7,204.34,204.31,2.68768277]
[1759078141221,0.7,204.34,204.31,3.40768277]
[1759078142719,0.7,204.34,204.3,0.1]
[1759078142915,0.7,204.33,204.3,3.50768277]
[1759078143620,0.7,204.33,204.3,0.1]
[1759078143809,2.68768277,204.34,204.3,0.1]
[1759078144012,0.7,204.32,204.3,0.1]
[1759078144410,0.7,204.31,204.3,0.1]
[1759078144618,38.4,204.33,204.3,0.1]
[1759078144804,0.7,204.32,204.3,0.1]
[1759078145411,0.7,204.31,204.3,0.1]
[1759078146502,1.7214264,204.34,204.3,2.5414264]
[1759078146503,37.7,204.34,204.3,2.5414264]
[1759078146702,37.7,204.34,204.3,1.8214264]
[1759078146903,37.7,204.34,204.31,0.72]
[1759078147109,38.4,204.34,204.3,1.8214264]
[1759078147309,38.4,204.34,204.3,2.5414264]
[1759078147525,0.7,204.34,204.3,2.5414264]
[1759078148229,0.7,204.33,204.3,0.82]
[1759078148598,0.7,204.33,204.3,0.1]
[1759078149515,0.7,204.33,204.3,0.82]
[1759078151224,39.4214264,204.35,204.3,0.82]
[1759078151519,0.66,204.34,204.3,0.1]
[1759078152607,39.4214264,204.35,204.31,0.68]
[1759078152808,38.36,204.35,204.31,0.68]
[1759078153729,132.8,204.36,204.31,1.7214264]
[1759078153939,132.8,204.36,204.32,2.4014264]
[1759078154108,170.5,204.36,204.33,2.4014264]
[1759078154624,171.16,204.36,204.33,2.4014264]
[1759078154820,171.16,204.36,204.33,0.68]
[1759078155216,133.46,204.36,204.33,0.68]
[1759078155421,171.16,204.36,204.32,1.7214264]
[1759078155626,171.16,204.36,204.32,2.4014264]
[1759078156530,171.16,204.36,204.32,0.68]
[1759078158605,0.66,204.35,204.32,0.68]
[1759078160031,171.16,204.36,204.32,0.68]
[1759078160606,113.59559401,204.42,204.35,1.7214264]
[1759078160607,0.68,204.41,204.35,1.7214264]
[1759078160813,100.0,204.42,204.38,1.7214264]
[1759078161013,100.0,204.42,204.39,1.7214264]
[1759078161014,100.68,204.42,204.39,1.7214264]
[1759078161917,0.68,204.41,204.38,2.4014264]
[1759078162422,38.36,204.43,204.39,1.7214264]
[1759078162713,0.68,204.43,204.39,2.4014264]
[1759078163123,40.97783963,204.44,204.39,0.68]
[1759078163324,0.68,204.42,204.38,1.7214264]
[1759078163514,0.68,204.42,204.38,2.4014264]
[1759078164639,0.68,204.42,204.39,0.68]
[1759078165920,0.68,204.43,204.39,2.4014264]
[1759078166221,0.68,204.43,204.4,0.68]
[1759078166621,0.68,204.43,204.4,2.4014264]
[1759078166821,0.68,204.43,204.4,1.7214264]
[1759078167033,0.68,204.43,204.39,1.7214264]
[1759078167233,0.68,204.43,204.39,2.4014264]
[1759078172342,0.68,204.43,204.39,1.7214264]
[1759078172649,0.68,204.43,204.39,2.4014264]
[1759078173246,0.68,204.43,204.4,0.68]
[1759078178649,0.68,204.43,204.4,2.4014264]
[1759078179950,37.68,204.44,204.4,2.4014264]
[1759078180148,38.36,204.44,204.4,2.4014264]
[1759078181158,37.68,204.44,204.4,2.4014264]
[1759078181447,0.68,204.43,204.4,2.4014264]
[1759078182931,0.68,204.43,204.39,1.7214264]
[1759078183340,0.68,204.43,204.39,2.4014264]
[1759078184361,0.68,204.43,204.39,1.7214264]
[1759078184538,0.68,204.43,204.4,0.68]
[1759078184737,0.68,204.43,204.4,2.4014264]
[1759078185038,0.68,204.43,204.4,0.68]
[1759078185656,0.68,204.46,204.41,1.7214264]
[1759078185855,132.8,204.47,204.45,1.7214264]
[1759078186060,132.8,204.47,204.46,2.4014264]
[1759078186747,132.8,204.47,204.46,0.68]
[1759078187059,132.8,204.47,204.43,2.4014264]
[1759078187060,133.48,204.47,204.43,2.4014264]
[1759078187240,171.14,204.47,204.44,0.68]
[1759078188346,170.46,204.47,204.45,0.68]
[1759078188553,170.46,204.47,204.44,1.7214264]
[1759078188750,170.46,204.47,204.44,2.4014264]
[1759078189764,170.46,204.47,204.45,0.68]
[1759078191863,170.46,204.47,204.46,0.71]
[1759078192052,170.46,204.47,204.46,2.4314264]
[1759078192259,132.8,204.47,204.46,2.4314264]
[1759078192564,132.8,204.47,204.45,1.7214264]
[1759078193057,132.8,204.47,204.45,2.4314264]
[1759078193264,132.8,204.47,204.46,1.7214264]
[1759078195056,132.8,204.47,204.45,1.7214264]
[1759078195958,132.8,204.47,204.45,2.4314264]
[1759078196153,132.8,204.47,204.45,1.7214264]
[1759078196344,133.51,204.47,204.45,1.7214264]
[1759078196540,133.51,204.47,204.44,1.7214264]
[1759078196744,133.51,204.47,204.44,2.4314264]
[1759078196965,132.8,204.47,204.45,2.4314264]
[1759078198854,132.8,204.47,204.45,1.7214264]
[1759078199259,0.71,204.46,204.44,1.7214264]
[1759078200162,132.8,204.47,204.44,1.7214264]
[1759078200364,133.51,204.47,204.44,1.7214264]
[1759078201173,171.17,204.47,204.44,2.4314264]
[1759078201749,26.0,204.44,204.36,0.71]
[1759078201965,1.7214264,204.42,204.36,2.4314264]
[1759078202165,0.71,204.41,204.36,2.4314264]
[1759078202348,0.71,204.4,204.36,0.71]
[1759078202549,0.71,204.4,204.37,0.71]
[1759078203973,1.7214264,204.38,204.32,17.15354638]
[1759078204280,0.71,204.37,204.32,2.4314264]
[1759078204456,0.71,204.37,204.33,0.71]
[1759078205483,37.66,204.38,204.34,1.7214264]
[1759078205668,37.66,204.38,204.35,2.4314264]
[1759078205870,37.66,204.38,204.36,0.71]
[1759078206072,2.4314264,204.37,204.3,0.81]
[1759078206258,1.7214264,204.34,204.3,0.1]
[1759078206666,0.71,204.33,204.3,14.82356507]
[1759078206884,0.71,204.33,204.3,0.1]
[1759078208567,0.71,204.33,204.3,2.7893439]
[1759078208766,0.71,204.33,204.3,0.1]
[1759078209258,37.7,204.34,204.3,0.1]
[1759078209467,28.6893439,204.31,204.3,0.1]
[1759078209666,66.3893439,204.31,204.3,0.1]
[1759078209869,67.0993439,204.31,204.3,0.1]
[1759078211479,41.0993439,204.31,204.3,0.1]
[1759078213356,67.1393439,204.31,204.3,0.1]
[1759078213559,37.74,204.31,204.3,0.1]
[1759078213764,39.51042017,204.33,204.3,0.1]
[1759078214381,1.05042017,204.33,204.32,2.6893439]
[1759078214677,1.05042017,204.33,204.32,3.3893439]
[1759078215265,1.75042017,204.33,204.3,2.7893439]
[1759078215472,1.05042017,204.33,204.3,2.7893439]
[1759078215777,1.05042017,204.33,204.3,3.4893439]
[1759078216767,1.05042017,204.33,204.31,2.6893439]
[1759078217569,1.75042017,204.33,204.3,2.7893439]
[1759078217971,1.05042017,204.33,204.3,2.7893439]
[1759078218173,1.05042017,204.33,204.31,3.3893439]
[1759078218375,1.05042017,204.33,204.32,2.6893439]
[1759078218582,1.05042017,204.33,204.31,3.3893439]
[1759078218979,1.05042017,204.33,204.32,3.3893439]
[1759078221089,1.05042017,204.33,204.3,0.82]
[1759078221298,1.72042017,204.33,204.3,2.7893439]
[1759078222181,1.05042017,204.33,204.32,2.6893439]
[1759078226491,1.72042017,204.33,204.3,0.1]
[1759078226793,0.67,204.32,204.3,0.1]
[1759078227008,80.04493791,204.31,204.3,0.1]
[1759078227187,80.71493791,204.31,204.3,0.1]
[1759078227396,82.67933325,204.31,204.3,0.1]
[1759078228501,87.57385627,204.31,204.3,0.1]
[1759078229388,13.59559401,204.3,204.28,0.1]
[1759078229583,16.28493791,204.29,204.28,0.1]
[1759078229788,16.95493791,204.29,204.28,0.1]
[1759078230385,54.85493791,204.29,204.28,0.1]
[1759078230702,56.8195262,204.29,204.28,0.1]
[1759078232379,61.7145284,204.29,204.28,0.1]
[1759078233682,39.59559401,204.25,204.24,0.1]
[1759078233995,80.20493791,204.25,204.24,0.1]
[1759078234181,80.87493791,204.25,204.24,0.1]
[1759078234505,82.84000877,204.25,204.24,0.1]
[1759078239209,82.17000877,204.25,204.24,0.1]
[1759078239989,44.92000877,204.25,204.24,0.1]
[1759078240188,82.17000877,204.25,204.24,0.1]
[1759078241003,28.6893439,204.25,204.24,0.82]
[1759078241309,66.6093439,204.25,204.24,0.1]
[1759078243207,28.6893439,204.25,204.24,0.1]
[1759078243392,66.6093439,204.25,204.24,0.1]
[1759078244392,28.6893439,204.25,204.24,0.82]
[1759078244598,66.6093439,204.25,204.24,0.82]
[1759078245319,63.92,204.25,204.24,0.82]
[1759078245491,66.6093439,204.25,204.24,0.82]
[1759078246306,66.5893439,204.25,204.24,0.82]
[1759078246717,2.6893439,204.26,204.24,0.82]
[1759078246897,37.9,204.25,204.24,0.82]
[1759078247205,37.9,204.25,204.24,0.1]
[1759078247792,40.5893439,204.25,204.24,0.82]
[1759078249306,37.9,204.25,204.24,0.82]
[1759078249614,26.0,204.28,204.24,0.82]
[1759078249807,37.88,204.27,204.24,0.82]
[1759078251316,37.88,204.27,204.24,0.1]
[1759078251508,37.88,204.27,204.25,0.67]
[1759078251691,37.88,204.27,204.26,0.67]
[1759078254321,37.86,204.27,204.26,0.67]
[1759078255927,3.27450386,204.3,204.26,0.67]
[1759078256095,158.8,204.31,204.27,2.6893439]
[1759078256297,37.86,204.29,204.28,0.67]
[1759078257988,1.76042017,204.33,204.28,0.67]
[1759078257989,1.05042017,204.33,204.28,0.67]
[1759078258195,37.86,204.32,204.29,2.6893439]
[1759078258430,37.86,204.32,204.3,0.67]
[1759078258596,37.86,204.32,204.31,0.67]
[1759078259416,37.86,204.32,204.29,2.6893439]
[1759078261319,0.71,204.31,204.26,2.6893439]
[1759078261516,0.71,204.3,204.26,2.6893439]
[1759078261728,0.71,204.3,204.26,0.67]
[1759078262016,0.71,204.3,204.26,3.3593439]
[1759078263525,0.71,204.3,204.26,2.8593439]
[1759078264021,0.71,204.3,204.26,2.6893439]
[1759078264200,37.86,204.32,204.27,2.6893439]
[1759078264396,0.71,204.31,204.27,2.6893439]
[1759078264723,0.71,204.3,204.27,2.6893439]
[1759078265190,38.57,204.32,204.27,2.6893439]
[1759078265396,0.71,204.31,204.27,2.6893439]
[1759078265893,0.71,204.3,204.26,2.6893439]
[1759078266094,41.2593439,204.32,204.26,3.2593439]
[1759078266316,0.71,204.31,204.26,3.2593439]
[1759078266719,0.71,204.3,204.26,2.6893439]
[1759078267402,0.71,204.3,204.26,3.2593439]
[1759078269118,38.53,204.31,204.26,3.2593439]
[1759078270215,0.71,204.31,204.26,2.29168221]
[1759078270414,37.8,204.31,204.27,2.29168221]
[1759078270626,37.8,204.31,204.28,2.29168221]
[1759078270925,37.8,204.31,204.28,1.72168221]
[1759078271108,38.49,204.31,204.27,1.72168221]
[1759078271711,37.78,204.31,204.28,0.57]
[1759078271923,37.78,204.31,204.28,1.72168221]
[1759078272108,37.78,204.31,204.27,1.72168221]
[1759078272425,38.47,204.31,204.27,1.72168221]
[1759078272930,0.69,204.31,204.27,1.72168221]
[1759078274623,27.05042017,204.33,204.28,2.29168221]
[1759078274921,65.52042017,204.33,204.29,2.29168221]
[1759078275122,64.83042017,204.33,204.3,1.72168221]
[1759078275632,0.69,204.32,204.3,1.72168221]
[1759078275805,0.69,204.32,204.29,1.72168221]
[1759078276002,1.05042017,204.33,204.31,1.72168221]
[1759078276330,1.05042017,204.33,204.32,1.72168221]
[1759078280744,1.05042017,204.33,204.31,1.72168221]
[1759078285522,1.75042017,204.33,204.31,1.72168221]
[1759078285732,1.05042017,204.33,204.32,1.72168221]
[1759078290618,1.75042017,204.33,204.32,1.72168221]
[1759078291234,1.05042017,204.33,204.32,1.72168221]
[1759078291455,1.05042017,204.33,204.32,2.29168221]
[1759078291743,1.05042017,204.33,204.32,1.72168221]
[1759078294337,1.05042017,204.33,204.26,26.0]
[1759078294632,1.72168221,204.28,204.24,0.1]
[1759078294834,26.0,204.29,204.24,0.1]
[1759078294835,1.72168221,204.25,204.24,0.1]
[1759078295039,27.72168221,204.25,204.24,0.1]
[1759078295333,28.42168221,204.25,204.24,0.1]
[1759078302128,66.18168221,204.25,204.24,0.1]
[1759078305144,28.42168221,204.25,204.24,0.1]
[1759078305441,66.16168221,204.25,204.24,0.1]
[1759078306931,28.42168221,204.25,204.24,0.1]
[1759078307127,13.59559401,204.29,204.24,0.1]
[1759078307341,26.0,204.26,204.24,0.1]
[1759078307548,37.74,204.25,204.24,0.1]
[1759078308440,0.7,204.28,204.24,0.1]
[1759078308631,37.74,204.27,204.24,0.67]
[1759078308827,0.7,204.28,204.24,0.1]
[1759078309032,37.76,204.27,204.24,0.1]
[1759078309233,38.46,204.27,204.24,0.1]
[1759078309729,37.74,204.26,204.24,0.1]
[1759078310139,38.44,204.26,204.24,0.1]
[1759078310948,0.67,204.29,204.24,0.1]
[1759078311135,159.47,204.3,204.25,2.29168221]
[1759078311339,38.41,204.29,204.24,1.82168221]
[1759078311537,0.67,204.28,204.24,0.1]
[1759078311734,37.76,204.27,204.24,0.1]
[1759078311941,37.76,204.27,204.24,1.82168221]
[1759078312443,0.67,204.28,204.24,1.82168221]
[1759078312629,37.74,204.27,204.24,1.82168221]
[1759078312834,37.74,204.27,204.25,0.57]
[1759078313042,0.67,204.29,204.24,1.82168221]
[1759078313246,38.41,204.28,204.24,1.82168221]
[1759078317145,0.67,204.27,204.24,1.82168221]
[1759078317335,37.72,204.27,204.24,2.39168221]
[1759078317535,37.72,204.27,204.25,1.72168221]
[1759078318667,37.72,204.28,204.25,1.72168221]
[1759078318957,38.39,204.28,204.25,1.72168221]
[1759078320457,2.39168221,204.27,204.24,0.1]
[1759078320646,1.72168221,204.25,204.24,0.1]
[1759078320846,1.72168221,204.25,204.23,0.1]
[1759078320847,41.31727622,204.25,204.23,0.1]
[1759078321049,40.15168221,204.24,204.23,0.1]
[1759078322042,40.13168221,204.24,204.23,0.1]
[1759078322343,172.93168221,204.24,204.23,0.1]
[1759078324365,170.54,204.24,204.23,0.1]
[1759078324563,172.93168221,204.24,204.23,0.1]
[1759078324740,171.21,204.24,204.23,0.1]
[1759078325368,133.47,204.24,204.23,0.1]
[1759078325549,171.23,204.24,204.23,0.1]
[1759078325752,38.43,204.24,204.23,0.1]
[1759078326459,40.15168221,204.24,204.23,0.1]
[1759078331038,66.15168221,204.24,204.23,0.1]
[1759078331243,40.15168221,204.24,204.23,0.1]
[1759078332356,41.12303414,204.24,204.23,0.1]
[1759078333658,67.10303414,204.24,204.23,0.1]
[1759078334665,66.43303414,204.24,204.23,0.1]
[1759078334856,67.08303414,204.24,204.23,0.1]
[1759078335971,28.69303414,204.24,204.23,0.1]
[1759078336272,66.43303414,204.24,204.23,0.1]
[1759078336488,69.71369684,204.24,204.23,0.1]
[1759078336653,63.74,204.24,204.23,0.1]
[1759078336852,132.8,204.26,204.23,0.1]
[1759078337066,37.74,204.25,204.23,0.1]
[1759078337367,2.69303414,204.27,204.23,0.1]
[1759078337546,0.65,204.29,204.24,0.67]
[1759078337547,5.97566581,204.28,204.24,0.67]
[1759078337746,63.74,204.27,204.25,0.67]
[1759078338064,26.0,204.27,204.24,0.67]
[1759078338272,37.74,204.26,204.23,2.79303414]
[1759078338457,37.74,204.26,204.25,0.67]
[1759078339348,37.74,204.26,204.24,2.69303414]
[1759078339556,37.74,204.26,204.24,3.36303414]
[1759078340174,37.74,204.26,204.24,0.67]
[1759078341167,37.74,204.26,204.23,2.79303414]
[1759078341478,37.74,204.26,204.23,0.1]
[1759078342572,37.74,204.26,204.23,0.76]
[1759078343275,37.74,204.26,204.23,3.45303414]
[1759078345353,37.74,204.26,204.23,0.76]
[1759078346267,37.74,204.26,204.23,0.1]
[1759078348079,37.74,204.26,204.23,0.76]
[1759078348378,132.8,204.32,204.25,2.69303414]
[1759078348678,41.00562914,204.31,204.28,2.69303414]
[1759078348878,41.68562914,204.32,204.28,2.69303414]
[1759078349073,3.96562914,204.31,204.28,2.69303414]
[1759078349467,0.68,204.31,204.28,2.69303414]
[1759078349667,3.96562914,204.32,204.28,2.69303414]
[1759078349863,38.4,204.32,204.28,2.69303414]
[1759078350071,41.68562914,204.32,204.28,2.69303414]
[1759078350262,37.72,204.31,204.28,2.69303414]
[1759078351355,3.96458431,204.32,204.28,2.69303414]
[1759078351559,38.4,204.31,204.28,2.69303414]
[1759078354491,0.68,204.3,204.26,2.69303414]
[1759078354693,0.68,204.29,204.26,2.69303414]
[1759078354981,0.68,204.28,204.25,2.69303414]
[1759078355377,38.4,204.28,204.25,2.69303414]
[1759078355561,37.72,204.28,204.25,2.69303414]
[1759078355766,3.37303414,204.27,204.23,0.1]
[1759078355961,2.69303414,204.24,204.23,0.1]
[1759078356189,40.41303414,204.24,204.23,0.1]
[1759078356500,41.09303414,204.24,204.23,0.1]
[1759078357391,3.37303414,204.24,204.23,0.1]
[1759078357595,41.09303414,204.24,204.23,0.1]
[1759078357793,0.68,204.24,204.23,0.1]
[1759078357988,37.72,204.24,204.23,0.1]
[1759078358174,38.4,204.24,204.23,0.1]
[1759078360793,41.09303414,204.24,204.23,0.1]
[1759078361299,3.37303414,204.24,204.2,0.1]
[1759078361587,37.72,204.23,204.2,0.1]
[1759078361790,40.41303414,204.23,204.2,0.1]
[1759078362090,0.68,204.22,204.2,0.1]
[1759078362294,38.4,204.21,204.2,0.1]
[1759078363590,41.09303414,204.21,204.2,0.1]
[1759078363784,3.37303414,204.21,204.2,0.1]
[1759078364194,41.09303414,204.21,204.2,0.1]
[1759078364873,38.4,204.21,204.2,0.1]
[1759078366075,0.68,204.21,204.2,0.1]
[1759078366280,38.4,204.21,204.2,0.1]
[1759078371391,0.68,204.21,204.2,0.1]
[1759078371594,38.4,204.21,204.2,0.1]
[1759078371891,0.68,204.21,204.2,0.1]
[1759078372086,38.4,204.21,204.2,0.1]
[1759078372287,0.68,204.21,204.2,0.1]
[1759078372487,38.4,204.21,204.2,0.1]
[1759078373500,159.51,204.24,204.2,3.46303414]
[1759078373806,37.72,204.23,204.2,3.46303414]
[1759078373980,37.72,204.23,204.2,2.79303414]
[1759078374406,38.43,204.23,204.2,2.79303414]
[1759078376803,28.69303414,204.27,204.21,2.69303414]
[1759078377009,38.43,204.26,204.21,2.69303414]